fUSD/lending_fUSD_20241023
["ID","MTS","AMOUNT","RATE_DAILY","PERIOD"]
[340701211,1729695070033,-500.0,0.00050607,2]
[340701212,1729695070043,-500.0,0.00050607,120]
[340701213,1729695070053,-500.0,0.00050607,120]
[340701214,1729695070062,-500.0,0.00050607,120]
[340701215,1729695070072,-500.0,0.00050607,120]
[340701216,1729695070083,-500.0,0.00050607,120]
[340701217,1729695070093,-500.0,0.00050607,120]
[340701218,1729695070102,-500.0,0.00050607,120]
[340701219,1729695070111,-537.46,0.00050607,120]
[340701220,1729695070121,-500.0,0.00050607,120]
[340701221,1729695070131,-500.0,0.00050607,120]
[340701222,1729695070140,-500.0,0.00050607,120]
[340701223,1729695070150,-662.0,0.00050607,120]
[340701224,1729695070159,-791.08,0.00050607,120]
[340701225,1729695070168,-500.0,0.00050607,120]
[340701226,1729695070178,-500.0,0.00050607,120]
[340701227,1729695070187,-500.0,0.00050607,120]
[340701228,1729695070196,-763.78,0.00050607,120]
[340701229,1729695070206,-614.50360155,0.00050607,120]
[340701230,1729695070215,-500.0,0.00050607,120]
[340701231,1729695070225,-543.79753039,0.00050607,120]
[340701232,1729695070235,-500.0,0.00050607,120]
[340701233,1729695070244,-571.59,0.00050607,120]
[340701234,1729695070254,-500.0,0.00050607,120]
[340701235,1729695070263,-500.0,0.00050607,120]
[340701236,1729695070271,-500.0,0.00050607,120]
[340701237,1729695070281,-500.0,0.00050607,120]
[340701238,1729695070290,-500.0,0.00050607,120]
[340701239,1729695070299,-500.0,0.00050607,120]
[340701240,1729695070308,-500.0,0.00050607,120]
[340701241,1729695070317,-500.0,0.00050607,120]
[340701242,1729695070328,-500.0,0.00050607,120]
[340701243,1729695070337,-805.88,0.00050607,120]
[340701244,1729695070347,-500.0,0.00050607,120]
[340701245,1729695070357,-500.0,0.00050607,120]
[340701246,1729695070367,-500.0,0.00050607,120]
[340701247,1729695070376,-150.0,0.00050611,14]
[340701248,1729695070386,-150.0,0.00050613,7]
[340701249,1729695070395,-500.0,0.00050618,120]
[340701250,1729695070405,-500.0,0.00050618,120]
[340701251,1729695070414,-348.93811561,0.00050618,120]
[340701252,1729695070423,-633.36,0.00050618,120]
[340701253,1729695070433,-674.13,0.00050618,120]
[340701254,1729695070442,-500.0,0.00050618,120]
[340701255,1729695070452,-1233.24,0.00050618,7]
[340701256,1729695070461,-500.0,0.00050618,120]
[340701257,1729695070470,-500.0,0.00050618,120]
[340701258,1729695070479,-185.35805787,0.00050618,120]
[340701259,1729695070489,-500.0,0.00050618,120]
[340701260,1729695070499,-498.72119098,0.00050618,120]
[340701261,1729695070509,-500.0,0.00050618,120]
[340701262,1729695070519,-500.0,0.00050618,60]
[340701263,1729695070529,-500.0,0.00050618,120]
[340701264,1729695070539,-500.0,0.00050618,120]
[340701265,1729695070548,-500.0,0.00050618,120]
[340701266,1729695070558,-500.0,0.00050618,120]
[340701267,1729695070569,-500.0,0.00050618,120]
[340701268,1729695070581,-500.0,0.00050618,120]
[340701269,1729695070590,-500.0,0.00050618,120]
[340701270,1729695070600,-500.0,0.00050618,120]
[340701271,1729695070610,-500.0,0.00050618,120]
[340701272,1729695070619,-500.0,0.00050618,120]
[340701273,1729695070628,-500.0,0.00050618,120]
[340701274,1729695070638,-500.0,0.00050618,120]
[340701275,1729695070648,-500.0,0.00050618,120]
[340701276,1729695070658,-500.0,0.00050618,120]
[340701277,1729695070668,-500.0,0.00050618,120]
[340701278,1729695070678,-500.0,0.00050618,120]
[340701279,1729695070687,-500.0,0.00050618,120]
[340701280,1729695070697,-500.0,0.00050618,120]
[340701281,1729695070707,-623.29,0.00050618,120]
[340701282,1729695070716,-500.0,0.00050618,120]
[340701283,1729695070726,-500.0,0.00050618,120]
[340701284,1729695070735,-500.0,0.00050618,120]
[340701285,1729695070745,-500.0,0.00050618,120]
[340701286,1729695070755,-500.0,0.00050618,2]
[340701287,1729695070765,-500.0,0.00050618,120]
[340701288,1729695070774,-570.24483456,0.00050618,120]
[340701289,1729695070784,-500.0,0.00050618,120]
[340701290,1729695070793,-500.0,0.00050618,120]
[340701291,1729695070804,-500.0,0.00050618,120]
[340701292,1729695070814,-639.26,0.00050618,120]
[340701293,1729695070824,-616.53,0.00050618,120]
[340701294,1729695070834,-500.0,0.00050618,120]
[340701295,1729695070844,-500.0,0.00050618,120]
[340701296,1729695070854,-500.0,0.00050618,120]
[340701297,1729695070864,-500.0,0.00050618,120]
[340701298,1729695070873,-500.0,0.00050618,120]
[340701299,1729695070884,-500.0,0.00050618,120]
[340701300,1729695070894,-533.17,0.00050618,120]
[340701301,1729695070903,-500.0,0.00050618,2]
[340701302,1729695070912,-557.53,0.00050618,120]
[340701303,1729695070922,-500.0,0.00050618,2]
[340701304,1729695070931,-500.0,0.00050618,120]
[340701305,1729695070941,-500.0,0.00050618,120]
[340701306,1729695070951,-500.0,0.00050618,120]
[340701307,1729695070961,-468.61092331,0.00050618,120]
[340701308,1729695070970,-500.0,0.00050618,120]
[340701309,1729695070982,-500.0,0.00050618,120]
[340701310,1729695070992,-500.0,0.00050618,120]
[340701311,1729695071002,-500.0,0.00050618,120]
[340701312,1729695071011,-500.0,0.00050618,120]
[340701313,1729695071021,-500.0,0.00050618,120]
[340701314,1729695071030,-500.0,0.00050618,120]
[340701315,1729695071040,-500.0,0.00050618,120]
[340701316,1729695071049,-500.0,0.00050618,120]
[340701317,1729695071058,-500.0,0.00050618,120]
[340701318,1729695071068,-500.0,0.00050618,120]
[340701319,1729695071079,-761.83,0.00050618,120]
[340701320,1729695071089,-500.0,0.00050618,120]
[340701321,1729695071098,-500.0,0.00050618,120]
[340701322,1729695071108,-500.0,0.00050618,120]
[340701323,1729695071117,-500.0,0.00050618,120]
[340701324,1729695071127,-500.0,0.00050618,120]
[340701325,1729695071136,-500.0,0.00050618,120]
[340701326,1729695071147,-500.0,0.00050618,120]
[340701327,1729695071157,-500.0,0.00050618,120]
[340701328,1729695071167,-500.0,0.00050618,120]
[340701329,1729695071177,-500.0,0.00050618,120]
[340701330,1729695071186,-500.0,0.00050618,120]
[340701331,1729695071197,-500.0,0.00050618,120]
[340701332,1729695071207,-1259.92,0.00050618,120]
[340701333,1729695071216,-500.0,0.00050618,120]
[340701334,1729695071225,-500.0,0.00050618,120]
[340701335,1729695071235,-500.0,0.00050618,120]
[340701336,1729695071246,-500.0,0.00050618,120]
[340701337,1729695071255,-500.0,0.00050618,120]
[340701338,1729695071265,-500.0,0.00050618,120]
[340701339,1729695071275,-500.0,0.00050618,120]
[340701340,1729695071286,-500.0,0.00050618,120]
[340701341,1729695071295,-500.0,0.00050618,120]
[340701342,1729695071305,-500.0,0.00050618,120]
[340701343,1729695071315,-165.69775997,0.00050618,120]
[340701344,1729695071325,-500.0,0.00050618,120]
[340701345,1729695071338,-500.0,0.00050618,120]
[340701346,1729695071352,-500.0,0.00050618,120]
[340701347,1729695071362,-500.0,0.00050618,120]
[340701348,1729695071371,-500.0,0.00050618,120]
[340701349,1729695071381,-500.0,0.00050618,120]
[340701350,1729695071391,-500.0,0.00050618,120]
[340701351,1729695071401,-583.75,0.00050618,120]
[340701352,1729695071411,-500.0,0.00050618,120]
[340701353,1729695071421,-500.0,0.00050618,120]
[340701354,1729695071431,-500.0,0.00050618,120]
[340701355,1729695071440,-249.47029778,0.00050618,120]
[340701356,1729695071449,-500.0,0.00050618,120]
[340701357,1729695071458,-500.0,0.00050618,120]
[340701358,1729695071468,-500.0,0.00050618,120]
[340701359,1729695071478,-591.95,0.00050618,120]
[340701360,1729695071488,-500.0,0.00050618,120]
[340701361,1729695071499,-500.0,0.00050618,120]
[340701362,1729695071509,-500.0,0.00050618,120]
[340701363,1729695071520,-1926.93,0.00050618,120]
[340701364,1729695071530,-500.0,0.00050618,120]
[340701365,1729695071539,-500.0,0.00050618,120]
[340701366,1729695071549,-500.0,0.00050618,120]
[340701367,1729695071560,-1953.12,0.00050618,120]
[340701368,1729695071569,-500.0,0.00050618,120]
[340701369,1729695071582,-1316.14,0.00050618,120]
[340701370,1729695071591,-243.44174968,0.00050618,120]
[340701371,1729695071601,-513.64,0.00050618,120]
[340701372,1729695071610,-500.0,0.00050618,120]
[340701373,1729695071619,-192.54474717,0.00050618,120]
[340701374,1729695071629,-1902.26,0.00050618,120]
[340701375,1729695071638,-500.0,0.00050618,120]
[340701376,1729695071648,-500.0,0.00050618,120]
[340701377,1729695071658,-699.33,0.00050618,120]
[340701378,1729695071668,-2403.72,0.00050618,120]
[340701379,1729695071678,-686.38,0.00050618,120]
[340701380,1729695071688,-500.0,0.00050618,120]
[340701381,1729695071698,-500.0,0.00050618,120]
[340701382,1729695071708,-500.0,0.00050618,120]
[340701383,1729695071718,-631.69,0.00050618,120]
[340701384,1729695071727,-500.0,0.00050618,120]
[340701385,1729695071736,-2091.96,0.00050618,120]
[340701386,1729695071746,-549.51,0.00050618,120]
[340701387,1729695071756,-501.15,0.00050618,120]
[340701388,1729695071765,-2666.93,0.00050618,120]
[340701389,1729695071775,-1895.2,0.00050618,120]
[340701390,1729695071785,-500.0,0.00050618,120]
[340701391,1729695071795,-500.0,0.00050618,120]
[340701392,1729695071808,-500.0,0.00050618,120]
[340701393,1729695071817,-500.0,0.00050618,120]
[340701394,1729695071828,-500.0,0.00050618,120]
[340701395,1729695071838,-639.01,0.00050618,120]
[340701396,1729695071848,-2056.13,0.00050618,120]
[340701397,1729695071857,-500.0,0.00050618,120]
[340701398,1729695071867,-739.87,0.00050618,120]
[340701399,1729695071876,-500.0,0.00050619,120]
[340701400,1729695071885,-500.0,0.00050619,120]
[340701401,1729695071895,-651.7,0.00050619,120]
[340701402,1729695071904,-500.0,0.00050619,120]
[340701403,1729695071914,-500.0,0.00050619,120]
[340701404,1729695071923,-500.0,0.00050619,120]
[340701405,1729695071933,-500.0,0.00050619,120]
[340701406,1729695071943,-500.0,0.00050619,120]
[340701407,1729695071953,-505.6,0.00050619,120]
[340701408,1729695071962,-531.83,0.00050619,120]
[340701409,1729695071973,-500.0,0.00050619,120]
[340701410,1729695071982,-861.3,0.00050619,120]
[340701411,1729695071992,-645.91,0.00050619,120]
[340701412,1729695072001,-500.0,0.00050619,120]
[340701413,1729695072011,-1300.94,0.00050619,120]
[340701414,1729695072021,-2414.78,0.00050619,120]
[340701415,1729695072031,-500.0,0.00050619,120]
[340701416,1729695072041,-500.0,0.00050619,120]
[340701417,1729695072051,-500.0,0.00050619,120]
[340701418,1729695072061,-500.0,0.00050619,120]
[340701419,1729695072071,-500.0,0.00050619,120]
[340701420,1729695072082,-500.0,0.00050619,120]
[340701421,1729695072092,-500.0,0.00050619,120]
[340701422,1729695072102,-1666.47,0.00050619,120]
[340701423,1729695072112,-500.0,0.00050619,120]
[340701424,1729695072121,-150.0,0.00050622,14]
[340701425,1729695072131,-150.0,0.00050624,7]
[340701426,1729695072141,-256.20505689,0.00050629,7]
[340701427,1729695072151,-150.0,0.00050649,7]
[340701428,1729695072161,-150.0,0.00050679,14]
[340701429,1729695072170,-613.23,0.00050685,30]
[340701430,1729695072181,-500.0,0.00050689,120]
[340701431,1729695072191,-1038.31,0.00050689,120]
[340701432,1729695072201,-500.0,0.00050689,120]
[340701433,1729695072211,-1396.2,0.00050689,120]
[340701434,1729695072222,-2499.88,0.00050689,120]
[340701435,1729695072232,-581.14,0.00050689,120]
[340701436,1729695072242,-500.0,0.00050689,120]
[340701437,1729695072251,-2403.29,0.00050689,120]
[340701438,1729695072261,-2393.31,0.00050689,120]
[340701439,1729695072271,-1078.45,0.00050689,120]
[340701440,1729695072280,-1462.44,0.00050689,120]
[340701441,1729695072290,-865.81,0.00050689,120]
[340701442,1729695072300,-596.71,0.00050689,120]
[340701443,1729695072310,-1434.43,0.00050689,120]
[340701444,1729695072320,-472.52196626,0.00050689,120]
[340701445,1729695072332,-539.87,0.00050689,120]
[340701446,1729695072342,-6123.06,0.00050689,120]
[340701447,1729695072352,-500.0,0.00050689,120]
[340701448,1729695072362,-500.0,0.00050689,120]
[340701449,1729695072372,-500.0,0.00050689,120]
[340701450,1729695072382,-500.0,0.0005069,120]
[340701451,1729695072392,-551.7,0.0005069,120]
[340701452,1729695072402,-500.0,0.0005069,120]
[340701453,1729695072412,-500.0,0.0005069,120]
[340701454,1729695072422,-500.0,0.0005069,120]
[340701455,1729695072432,-1279.4,0.0005069,120]
[340701456,1729695072442,-541.69,0.0005069,120]
[340701457,1729695072451,-500.0,0.0005069,120]
[340701458,1729695072461,-500.0,0.0005069,120]
[340701459,1729695072471,-500.0,0.0005069,120]
[340701460,1729695072481,-500.0,0.0005069,120]
[340701461,1729695072491,-500.0,0.0005069,120]
[340701462,1729695072501,-500.0,0.0005069,120]
[340701463,1729695072511,-500.0,0.0005069,120]
[340701464,1729695072520,-800.5,0.0005069,120]
[340701465,1729695072530,-829.74,0.0005069,120]
[340701466,1729695072539,-500.0,0.0005069,120]
[340701467,1729695072549,-500.0,0.0005069,120]
[340701468,1729695072558,-831.97,0.0005069,120]
[340701469,1729695072568,-500.0,0.0005069,120]
[340701470,1729695072578,-3068.62,0.0005069,120]
[340701471,1729695072588,-2062.02,0.0005069,120]
[340701472,1729695072597,-636.42,0.0005069,120]
[340701473,1729695072607,-500.0,0.0005069,120]
[340701474,1729695072617,-632.86,0.0005069,120]
[340701475,1729695072628,-500.0,0.0005069,120]
[340701476,1729695072638,-500.0,0.0005069,120]
[340701477,1729695072648,-521.15,0.0005069,120]
[340701478,1729695072658,-500.0,0.0005069,120]
[340701479,1729695072668,-500.0,0.0005069,120]
[340701480,1729695072678,-1010.38,0.0005069,120]
[340701481,1729695072688,-500.0,0.0005069,120]
[340701482,1729695072849,-500.0,0.0005069,120]
[340701483,1729695072875,-710.82,0.0005069,120]
[340701484,1729695072886,-829.76,0.0005069,120]
[340701485,1729695072896,-500.0,0.0005069,120]
[340701486,1729695072905,-500.0,0.0005069,120]
[340701487,1729695072915,-500.0,0.0005069,120]
[340701488,1729695072924,-500.0,0.0005069,120]
[340701489,1729695072934,-500.0,0.0005069,120]
[340701490,1729695072943,-500.0,0.0005069,120]
[340701491,1729695072953,-444.04792499,0.0005069,120]
[340701492,1729695072963,-500.0,0.0005069,120]
[340701493,1729695072972,-500.0,0.0005069,120]
[340701494,1729695072981,-500.0,0.0005069,120]
[340701495,1729695072990,-500.0,0.0005069,120]
[340701496,1729695072999,-2091.95,0.0005069,120]
[340701497,1729695073009,-285.083403,0.0005069,120]
[340701498,1729695073019,-217.23925505,0.0005069,120]
[340701499,1729695073028,-160.23056214,0.0005069,120]
[340701500,1729695073037,-405.89748,0.0005069,120]
[340701501,1729695073047,-15318.09,0.0005069,120]
[340701502,1729695073058,-500.0,0.0005069,120]
[340701503,1729695073068,-500.0,0.0005069,120]
[340701504,1729695073081,-696.58,0.0005069,120]
[340701505,1729695073091,-500.0,0.0005069,120]
[340701506,1729695073101,-500.0,0.0005069,120]
[340701507,1729695073113,-500.0,0.0005069,120]
[340701508,1729695073123,-598.85153297,0.0005069,120]
[340701509,1729695073132,-956.6,0.0005069,120]
[340701510,1729695073141,-500.0,0.0005069,120]
[340701511,1729695073154,-500.0,0.0005069,120]
[340701512,1729695073166,-500.0,0.0005069,120]
[340701513,1729695073177,-1237.23,0.0005069,120]
[340701514,1729695073187,-500.0,0.0005069,120]
[340701515,1729695073197,-500.0,0.0005069,120]
[340701516,1729695073207,-500.0,0.0005069,120]
[340701517,1729695073217,-524.64755036,0.0005069,120]
[340701518,1729695073227,-500.0,0.0005069,120]
[340701519,1729695073238,-500.0,0.0005069,120]
[340701520,1729695073250,-500.0,0.0005069,120]
[340701521,1729695073260,-500.0,0.0005069,120]
[340701522,1729695073271,-5655.78,0.0005069,21]
[340701523,1729695073282,-500.0,0.0005069,120]
[340701524,1729695073293,-500.0,0.0005069,120]
[340701525,1729695073303,-500.0,0.0005069,120]
[340701526,1729695073314,-497.15506667,0.0005069,120]
[340701527,1729695073325,-344.91821525,0.0005069,120]
[340701528,1729695073339,-500.0,0.0005069,120]
[340701529,1729695073348,-500.0,0.0005069,120]
[340701530,1729695073359,-1801.94,0.0005069,120]
[340701531,1729695073368,-1551.48,0.0005069,120]
[340701532,1729695073377,-500.0,0.0005069,120]
[340701533,1729695073387,-2527.52,0.0005069,120]
[340701534,1729695073398,-946.91,0.0005069,120]
[340701535,1729695073408,-500.0,0.0005069,120]
[340701536,1729695073417,-1036.64,0.0005069,120]
[340701537,1729695073426,-500.0,0.0005069,120]
[340701538,1729695073436,-500.0,0.0005069,120]
[340701539,1729695073445,-2104.19,0.0005069,120]
[340701540,1729695073454,-500.0,0.0005069,120]
[340701541,1729695073463,-500.0,0.0005069,120]
[340701542,1729695073473,-500.0,0.0005069,120]
[340701543,1729695073482,-500.0,0.0005069,120]
[340701544,1729695073491,-514.44,0.0005069,120]
[340701545,1729695073502,-742.05,0.0005069,120]
[340701546,1729695073512,-500.0,0.00050691,120]
[340701547,1729695073523,-500.0,0.00050691,120]
[340701548,1729695073532,-536.51217345,0.00050691,120]
[340701549,1729695073542,-500.0,0.00050691,120]
[340701550,1729695073552,-500.0,0.00050691,120]
[340701551,1729695073562,-546.83,0.00050691,120]
[340701552,1729695073572,-527.01,0.00050691,120]
[340701553,1729695073584,-633.57,0.00050691,120]
[340701554,1729695073593,-500.0,0.00050691,120]
[340701555,1729695073603,-500.0,0.00050691,120]
[340701556,1729695073612,-548.76,0.00050691,120]
[340701557,1729695073622,-500.0,0.00050691,120]
[340701558,1729695073631,-500.0,0.00050691,120]
[340701559,1729695073640,-500.0,0.00050691,120]
[340701560,1729695073650,-500.0,0.00050691,120]
[340701561,1729695073660,-500.0,0.00050691,120]
[340701562,1729695073670,-500.0,0.00050691,120]
[340701563,1729695073679,-500.0,0.00050691,120]
[340701564,1729695073688,-552.51,0.00050691,120]
[340701565,1729695073698,-500.0,0.00050691,120]
[340701566,1729695073708,-500.0,0.00050691,120]
[340701567,1729695073719,-500.0,0.00050691,120]
[340701568,1729695073730,-1010.74,0.00050691,120]
[340701569,1729695073739,-226.36,0.00050691,120]
[340701570,1729695073750,-500.0,0.00050691,120]
[340701571,1729695073759,-500.0,0.00050691,120]
[340701572,1729695073770,-500.0,0.00050691,120]
[340701573,1729695073781,-500.0,0.00050691,120]
[340701574,1729695073791,-664.87,0.00050691,120]
[340701575,1729695073802,-500.0,0.00050691,120]
[340701576,1729695073814,-500.0,0.00050691,120]
[340701577,1729695073824,-1025.87,0.00050691,120]
[340701578,1729695073836,-500.0,0.00050691,120]
[340701579,1729695073846,-500.0,0.00050691,120]
[340701580,1729695073855,-500.0,0.00050691,120]
[340701581,1729695073865,-500.0,0.00050691,120]
[340701582,1729695073874,-500.0,0.00050691,120]
[340701583,1729695073883,-500.0,0.00050691,120]
[340701584,1729695073892,-500.0,0.00050691,120]
[340701585,1729695073901,-500.0,0.00050691,120]
[340701586,1729695073912,-500.0,0.00050691,120]
[340701587,1729695073920,-500.0,0.00050691,120]
[340701588,1729695073930,-500.0,0.00050691,120]
[340701589,1729695073938,-500.0,0.00050691,120]
[340701590,1729695073947,-588.83,0.00050691,120]
[340701591,1729695073957,-500.0,0.00050691,120]
[340701592,1729695073966,-2381.92,0.00050691,120]
[340701593,1729695073976,-500.0,0.00050691,120]
[340701594,1729695073986,-500.0,0.00050691,120]
[340701595,1729695073995,-1507.06,0.00050691,120]
[340701596,1729695074004,-500.0,0.00050691,120]
[340701597,1729695074014,-501.75255509,0.00050691,120]
[340701598,1729695074023,-3850.95,0.00050691,120]
[340701599,1729695074032,-500.0,0.00050691,120]
[340701600,1729695074041,-600.68031346,0.00050691,120]
[340701601,1729695074050,-500.0,0.00050691,120]
[340701602,1729695074060,-500.0,0.00050691,120]
[340701603,1729695074070,-514.59607932,0.00050691,120]
[340701604,1729695074083,-618.02,0.00050691,120]
[340701605,1729695074092,-500.0,0.00050691,120]
[340701606,1729695074102,-500.0,0.00050691,120]
[340701607,1729695074112,-500.0,0.00050691,120]
[340701608,1729695074121,-1937.11,0.00050691,120]
[340701609,1729695074130,-2061.54,0.00050691,120]
[340701610,1729695074139,-500.0,0.00050691,120]
[340701611,1729695074148,-500.0,0.00050691,120]
[340701612,1729695074157,-2726.69,0.00050691,120]
[340701613,1729695074166,-500.0,0.00050691,120]
[340701614,1729695074176,-500.0,0.00050691,120]
[340701615,1729695074185,-338.57710815,0.00050691,120]
[340701616,1729695074194,-812.34,0.00050691,120]
[340701617,1729695074204,-542.26427071,0.00050691,120]
[340701618,1729695074214,-595.20646373,0.00050691,120]
[340701619,1729695074223,-840.01,0.00050691,120]
[340701620,1729695074233,-1694.03,0.00050691,120]
[340701621,1729695074245,-1245.48,0.00050691,120]
[340701622,1729695074255,-500.0,0.00050691,120]
[340701623,1729695074264,-500.0,0.00050691,120]
[340701624,1729695074274,-500.0,0.00050691,120]
[340701625,1729695074284,-1202.0,0.00050691,120]
[340701626,1729695074296,-2671.09,0.00050691,120]
[340701627,1729695074306,-500.0,0.00050691,120]
[340701628,1729695074317,-151.38,0.00050699,120]
[340701629,1729695074327,-150.0,0.00050702,7]
[340701630,1729695074338,-150.0,0.00050721,14]
[340701631,1729695074347,-150.0,0.00050732,7]
[340701632,1729695074356,-15812.93028412,0.00050757,15]
[340701633,1729695074365,-150.0,0.00050763,7]
[340701634,1729695074374,-265.563075,0.00050782,14]
[340701635,1729695074385,-150.0,0.00050783,14]
[340701636,1729695074395,-150.0,0.00050783,7]
[340701637,1729695074405,-150.0,0.00050787,14]
[340701638,1729695074414,-500.0,0.00050791,120]
[340701639,1729695074424,-517.46,0.00050791,120]
[340701640,1729695074434,-500.0,0.00050791,120]
[340701641,1729695074444,-500.0,0.00050791,120]
[340701642,1729695074453,-500.0,0.00050791,120]
[340701643,1729695074463,-688.94,0.00050791,120]
[340701644,1729695074474,-3187.68,0.00050791,120]
[340701645,1729695074484,-720.0,0.00050791,120]
[340701646,1729695074494,-1671.38,0.00050791,120]
[340701647,1729695074504,-1870.15,0.00050791,120]
[340701648,1729695074514,-500.0,0.00050791,120]
[340701649,1729695074524,-548.44,0.00050791,120]
[340701650,1729695074533,-639.46,0.00050791,120]
[340701651,1729695074543,-597.87245631,0.00050791,120]
[340701652,1729695074552,-500.0,0.00050791,120]
[340701653,1729695074562,-949.63,0.00050791,120]
[340701654,1729695074571,-5070.58,0.00050791,120]
[340701655,1729695074581,-2860.91,0.00050791,120]
[340701656,1729695074590,-4127.93,0.00050791,120]
[340701657,1729695074599,-620.51,0.00050791,120]
[340701658,1729695074609,-500.0,0.00050792,120]
[340701659,1729695074618,-500.0,0.00050792,120]
[340701660,1729695074627,-500.0,0.00050792,120]
[340701661,1729695074636,-500.0,0.00050792,120]
[340701662,1729695074645,-500.0,0.00050792,120]
[340701663,1729695074655,-500.0,0.00050792,120]
[340701664,1729695074664,-489.70308908,0.00050792,120]
[340701665,1729695074672,-500.0,0.00050792,120]
[340701666,1729695074682,-500.0,0.00050792,120]
[340701667,1729695074691,-500.0,0.00050792,120]
[340701668,1729695074700,-500.0,0.00050792,120]
[340701669,1729695074709,-500.0,0.00050792,120]
[340701670,1729695074720,-500.0,0.00050792,120]
[340701671,1729695074729,-500.0,0.00050792,120]
[340701672,1729695074739,-500.0,0.00050792,120]
[340701673,1729695074748,-500.0,0.00050792,120]
[340701674,1729695074757,-500.0,0.00050792,120]
[340701675,1729695074766,-500.0,0.00050792,120]
[340701676,1729695074776,-704.8,0.00050792,120]
[340701677,1729695074785,-851.17,0.00050792,120]
[340701678,1729695074794,-500.0,0.00050792,120]
[340701679,1729695074803,-1610.91,0.00050792,120]
[340701680,1729695074814,-500.0,0.00050792,120]
[340701681,1729695074825,-2404.26,0.00050792,120]
[340701682,1729695074837,-500.0,0.00050792,120]
[340701683,1729695074846,-2023.4,0.00050792,120]
[340701684,1729695074855,-610.2,0.00050792,120]
[340701685,1729695074864,-1452.47,0.00050792,120]
[340701686,1729695074873,-831.56,0.00050792,120]
[340701687,1729695074882,-514.41452455,0.00050792,120]
[340701688,1729695074893,-500.0,0.00050792,120]
[340701689,1729695074903,-623.53,0.00050792,120]
[340701690,1729695074915,-500.0,0.00050792,120]
[340701691,1729695074925,-500.0,0.00050792,120]
[340701692,1729695074934,-777.0,0.00050792,120]
[340701693,1729695074944,-590.11,0.00050792,120]
[340701694,1729695074954,-639.26,0.0005081,120]
[340701695,1729695074963,-583.75,0.0005081,120]
[340701696,1729695074974,-150.0,0.00050816,14]
[340701697,1729695074985,-215.0,0.0005086,30]
[340701698,1729695074995,-500.0,0.00050865,2]
[340701699,1729695075004,-500.0,0.00050865,120]
[340701700,1729695075014,-500.0,0.00050865,120]
[340701701,1729695075023,-500.0,0.0005088,120]
[340701702,1729695075032,-722.51,0.0005088,120]
[340701703,1729695075041,-1345.84,0.0005088,120]
[340701704,1729695075050,-500.0,0.0005088,120]
[340701705,1729695075060,-1084.74,0.0005088,120]
[340701706,1729695075071,-500.0,0.0005088,120]
[340701707,1729695075080,-500.0,0.0005088,120]
[340701708,1729695075093,-500.0,0.0005088,120]
[340701709,1729695075102,-500.0,0.0005088,120]
[340701710,1729695075111,-1845.24,0.0005088,120]